[Event "94th FRA-ch Accession 2019"]
[Site "Chartres"]
[Date "2019.08.18"]
[Round "2.4"]
[White "Philippe, Guillaume"]
[Black "Abergel, Thal"]
[Result "0-1"]
[ECO "B30"]
[WhiteElo "2321"]
[BlackElo "2471"]
[Annotator "ChessBase"]
[PlyCount "144"]
[EventDate "2019.08.17"]
[EventType "swiss"]
[EventCountry "FRA"]
[SourceTitle "playchess.com"]
[Source "ChessBase"]
[SourceQuality "1"]
[TimeControl "40/5400+30:1800+30"]

1. e4 {[%emt 0:00:00]} c5 {[%emt 0:00:00]} 2. Nf3 {[%emt 0:00:00]} d6 {[%emt 0:00:00]} 3. g3 {[%emt 0:00:10]} Nf6 {[%emt 0:01:04]} 4. d3 {[%emt 0:00:26]} Nc6 {[%emt 0:00:58]} 5. Bg2 {[%emt 0:00:10]} e5 {[%emt 0:00:51]} 6. O-O {[%emt 0:01:34]} Be7 {[%emt 0:00:13]} 7. Re1 {[%emt 0:05:16]} O-O {[%emt 0:00:12]} 8. c3 {[%emt 1:26:24]} Re8 {[%emt 0:03:56]} 9. a3 {[%emt 0:00:00]} Bf8 {[%emt 0:05:45]} 10. b4 {[%emt 0:00:00]} a6 {[%emt 0:01:30]} 11. Nbd2 {[%emt 0:00:00]} b5 {[%emt 0:05:33]} 12. Bb2 {[%emt 0:00:00]} Bb7 {[%emt 0:06:43]} 13. Qb3 {[%emt 0:00:00]} Rb8 {[%emt 0:08:30]} 14. Nf1 {[%emt 0:00:00]} a5 {[%emt 0:05:59]} 15. Ne3 {[%emt 0:00:00]} cxb4 {[%emt 0:01:51]} 16. cxb4 {[%emt 0:00:00]} a4 {[%emt 0:07:20]} 17. Qc2 {[%emt 0:00:00]} d5 {[%emt 0:01:49]} 18. exd5 {[%emt 0:00:00]} Nxd5 {[%emt 0:00:21]} 19. Rad1 {[%emt 0:00:00]} Rc8 {[%emt 0:05:18]} 20. Qb1 {[%emt 0:00:00]} Nxe3 {[%emt 0:02:22]} 21. Rxe3 {[%emt 0:00:00]} f6 {[%emt 0:11:34]} 22. d4 {[%emt 0:00:00]} exd4 {[%emt 0:02:22]} 23. Bxd4 {[%emt 0:00:00]} Nxd4 {[%emt 0:01:09]} 24. Rxd4 {[%emt 0:00:00]} Qc7 {[%emt 0:02:43]} 25. Rxe8 {[%emt 0:00:00]} Rxe8 {[%emt 0:00:14]} 26. Qd1 {[%emt 0:00:00]} Qf7 {[%emt 0:09:27]} 27. Nd2 {[%emt 0:00:00]} Bxg2 {[%emt 0:01:41]} 28. Kxg2 {[%emt 0:00:00]} Qb7+ {[%emt 0:01:27]} 29. Nf3 {[%emt 0:00:00]} Qc6 {[%emt 0:00:27]} 30. Qd3 {[%emt 0:00:00]} Re1 {[%emt 0:01:36]} 31. Qd2 {[%emt 0:03:04]} Rb1 {[%emt 0:02:14]} 32. Rd3 {[%emt 0:00:14]} Rb3 {[%emt 0:01:00]} 33. Qe3 {[%emt 0:07:17]} Qc4 {[%emt 0:00:54]} 34. Ne1 {[%emt 0:01:33]} g5 {[%emt 0:03:26]} 35. h3 {[%emt 0:00:02]} h5 {[%emt 0:01:01]} 36. Qf3 {[%emt 0:00:33]} Qe6 {[%emt 0:02:40]} 37. Qxh5 {[%emt 0:01:14]} Qe4+ {[%emt 0:00:05]} 38. Qf3 {[%emt 0:00:04]} Qxe1 {[%emt 0:00:18]} 39. Rxb3 {[%emt 0:00:02]} axb3 {[%emt 0:00:11]} 40. Qxb3+ {[%emt 0:00:04]} Kg7 {[%emt 0:00:45]} 41. Qf3 {[%emt 0:30:55]} Qe5 {[%emt 0:30:47]} 42. Qb7+ {[%emt 0:00:00]} Be7 {[%emt 0:00:00]} 43. Qd7 {[%emt 0:00:00]} Kf7 {[%emt 0:00:00]} 44. Qd3 {[%emt 0:00:00]} f5 {[%emt 0:00:00]} 45. Qd1 {[%emt 0:00:00]} f4 {[%emt 0:00:00]} 46. gxf4 {[%emt 0:00:00]} gxf4 {[%emt 0:00:00]} 47. Qf3 {[%emt 0:00:00]} Ke6 {[%emt 0:00:00]} 48. Qc6+ {[%emt 0:00:00]} Bd6 {[%emt 0:00:00]} 49. Qe8+ {[%emt 0:00:00]} Kf6 {[%emt 0:00:00]} 50. Qc6 {[%emt 0:00:00]} Kg5 {[%emt 0:00:00]} 51. Qb7 {[%emt 0:00:00]} Kf5 {[%emt 0:00:00]} 52. Qh7+ {[%emt 0:00:00]} Ke6 {[%emt 0:00:00]} 53. Qg8+ {[%emt 0:00:00]} Kd7 {[%emt 0:00:00]} 54. Qa8 {[%emt 0:00:00]} Qg5+ {[%emt 0:00:00]} 55. Kf3 {[%emt 0:00:00]} Qh5+ {[%emt 0:00:00]} 56. Kg2 {[%emt 0:00:00]} Qg6+ {[%emt 0:00:00]} 57. Kf3 {[%emt 0:00:00]} Qd3+ {[%emt 0:00:00]} 58. Kg2 {[%emt 0:00:00]} Bc7 {[%emt 0:00:00]} 59. Qb7 {[%emt 0:00:00]} Kd6 {[%emt 0:00:00]} 60. h4 {[%emt 0:00:00]} Qg6+ {[%emt 0:01:56]} 61. Kf1 {[%emt 0:00:00]} Qh5 {[%emt 0:01:03]} 62. Kg2 {[%emt 0:00:00]} Qg4+ {[%emt 0:00:30]} 63. Kf1 {[%emt 0:00:00]} Qh3+ {[%emt 0:00:21]} 64. Ke2 {[%emt 0:00:00]} Qg4+ {[%emt 0:03:06]} 65. Kf1 {[%emt 0:00:00]} Qxh4 {[%emt 0:01:00]} 66. Qxb5 {[%emt 0:00:00]} Qh3+ {[%emt 0:00:28]} 67. Ke2 {[%emt 0:00:00]} Qxa3 {[%emt 0:00:44]} 68. Qc5+ {[%emt 0:00:00]} Kd7 {[%emt 0:00:05]} 69. Qd5+ {[%emt 0:00:00]} Kc8 {[%emt 0:00:41]} 70. Qe6+ {[%emt 0:00:54]} Kb8 {[%emt 0:00:11]} 71. Qe8+ {[%emt 0:01:39]} Ka7 {[%emt 0:00:04]} 72. Qc6 {[%emt 0:00:09]} Qa6+ {[%emt 0:00:08]} 0-1

[Event "94th FRA-ch Accession 2019"]
[Site "Chartres"]
[Date "2019.08.18"]
[Round "2.5"]
[White "Pucher, Sebastien"]
[Black "Lamard, Guillaume"]
[Result "0-1"]
[ECO "E07"]
[WhiteElo "2316"]
[BlackElo "2419"]
[Annotator "NA"]
[PlyCount "72"]
[EventDate "2019.08.17"]
[EventType "swiss"]
[EventCountry "FRA"]
[SourceTitle "playchess.com"]
[Source "ChessBase"]
[SourceQuality "1"]
[TimeControl "40/5400+30:1800+30"]

1. c4 {[%emt 0:00:16]} e6 {[%emt 0:00:00]} 2. g3 {[%emt 0:01:29]} Nf6 {[%emt 0:00:04]} 3. b3 {[%emt 0:02:15]} d5 {[%emt 0:02:45]} 4. Nf3 {[%emt 0:00:17]} Be7 {[%emt 0:08:08]} 5. Bg2 {[%emt 0:00:19]} O-O {[%emt 0:00:05]} 6. O-O {[%emt 0:00:12]} c6 {[%emt 0:01:05]} 7. d4 {[%emt 0:08:28]} Nbd7 {[%emt 0:02:05]} 8. Bb2 {[%emt 0:02:13]} a5 {[%emt 0:01:15]} 9. Qc2 {[%emt 0:23:41]} Ne4 {[%emt 0:08:33]} 10. Ne1 {[%emt 0:10:30]} b5 {[%emt 0:04:22]} 11. Bxe4 {[%emt 0:22:47]} dxe4 {[%emt 0:03:35]} 12. cxb5 {[%emt 0:02:06]} cxb5 {[%emt 0:00:08]} 13. Qxe4 {[%emt 0:00:06]} Ba6 {[%emt 0:07:46]} 14. Nd2 {[%emt 0:00:46]} Nf6 {[%emt 0:05:57]} 15. Qd3 {[%emt 0:01:13]} a4 {[%emt 0:02:42]} 16. Rc1 {[%emt 0:01:22]} Nd5 $14 {[%emt 0:01:16]} 17. Nc2 {[%emt 0:12:52]} Qb6 {[%emt 0:06:24]} 18. e4 {[%emt 0:01:27]} Nf6 {[%emt 0:00:19]} 19. Ne3 {[%emt 0:03:13]} Rfd8 {[%emt 0:02:09]} 20. d5 {[%emt 0:02:17]} Bb7 {[%emt 0:03:28]} 21. Bd4 {[%emt 0:01:59]} Qa6 {[%emt 0:03:34]} 22. Bc5 {[%emt 0:00:21]} Bd6 {[%emt 0:00:47]} 23. b4 {[%emt 0:00:37]} exd5 {[%emt 0:00:56]} 24. exd5 {[%emt 0:00:23]} Be5 {[%emt 0:00:55]} 25. Nf3 {[%emt 0:00:48]} Bb2 {[%emt 0:00:37]} 26. Rc2 {[%emt 0:00:25]} Bxd5 {[%emt 0:06:22]} 27. Nxd5 {[%emt 0:00:35]} Rxd5 {[%emt 0:00:07]} 28. Qe2 {[%emt 0:00:13]} Re8 {[%emt 0:01:21]} 29. Be3 {[%emt 0:00:42]} a3 {[%emt 0:00:22]} 30. Rd1 {[%emt 0:00:18]} Qe6 {[%emt 0:01:34]} 31. Rcd2 {[%emt 0:00:44]} Rxd2 {[%emt 0:00:46]} 32. Rxd2 {[%emt 0:00:22]} Qxa2 {[%emt 0:00:13]} 33. Qxb5 {[%emt 0:00:05]} Qb1+ {[%emt 0:00:23]} 34. Kg2 {[%emt 0:01:07]} a2 {[%emt 0:00:47]} 35. Rxb2 {[%emt 0:00:16]} Qxb2 {[%emt 0:00:06]} 36. Bd4 {[%emt 0:00:13]} Qxd4 {[%emt 0:00:10]} 0-1

[Event "94th FRA-ch Accession 2019"]
[Site "Chartres"]
[Date "2019.08.18"]
[Round "2.6"]
[White "Maurizzi, Marc Andria"]
[Black "Willems, Niels"]
[Result "1-0"]
[ECO "B12"]
[WhiteElo "2419"]
[BlackElo "2351"]
[Annotator "NA"]
[PlyCount "47"]
[EventDate "2019.08.17"]
[EventType "swiss"]
[EventCountry "FRA"]
[SourceTitle "playchess.com"]
[Source "ChessBase"]
[SourceQuality "1"]
[TimeControl "40/5400+30:1800+30"]

1. e4 {[%emt 0:00:00]} c6 {[%emt 0:00:00]} 2. d4 {[%emt 0:00:00]} d5 {[%emt 0:00:00]} 3. e5 {[%emt 0:00:00]} c5 {[%emt 0:00:03]} 4. dxc5 {[%emt 0:00:00]} Nc6 {[%emt 0:00:07]} 5. a3 {[%emt 0:00:02]} e6 {[%emt 0:01:32]} 6. Nf3 {[%emt 0:00:28]} Bxc5 {[%emt 0:01:30]} 7. b4 {[%emt 0:04:02]} Bb6 {[%emt 0:00:47]} 8. Bd3 {[%emt 0:00:33]} Nge7 {[%emt 0:02:47]} 9. O-O {[%emt 0:00:37]} Ng6 {[%emt 0:02:49]} 10. Bb2 {[%emt 0:00:29]} O-O {[%emt 0:11:19]} 11. Re1 {[%emt 0:06:34]} Bc7 {[%emt 0:04:50]} 12. Nbd2 {[%emt 0:04:14]} f6 {[%emt 0:27:06]} 13. Bxg6 {[%emt 0:27:22]} hxg6 $16 {[%emt 0:00:20]} 14. c4 {[%emt 0:00:10]} dxc4 {[%emt 0:32:42]} 15. Nxc4 {[%emt 0:01:31]} b5 {[%emt 0:00:31]} 16. Nd6 {[%emt 0:06:24]} a6 {[%emt 0:01:14]} 17. Nxc8 {[%emt 0:03:03]} Qxc8 {[%emt 0:02:07]} 18. Rc1 {[%emt 0:02:28]} Ne7 {[%emt 0:00:41]} 19. exf6 {[%emt 0:05:33]} gxf6 {[%emt 0:00:19]} 20. Qb3 {[%emt 0:00:19]} Nd5 {[%emt 0:07:36]} 21. Nd4 {[%emt 0:00:28]} Nf4 {[%emt 0:00:29]} 22. Nxe6 {[%emt 0:00:35]} Nxe6 {[%emt 0:00:22]} 23. Rxe6 {[%emt 0:00:05]} Rf7 {[%emt 0:01:01]} 24. Rxf6 {[%emt 0:00:06]} 1-0

[Event "94th FRA-ch Accession 2019"]
[Site "Chartres"]
[Date "2019.08.19"]
[Round "3.1"]
[White "Abergel, Thal"]
[Black "Housieaux, David"]
[Result "1/2-1/2"]
[ECO "A13"]
[WhiteElo "2471"]
[BlackElo "2402"]
[Annotator "ChessBase"]
[PlyCount "117"]
[EventDate "2019.08.17"]
[EventType "swiss"]
[EventCountry "FRA"]
[SourceTitle "playchess.com"]
[Source "ChessBase"]
[SourceQuality "1"]
[TimeControl "40/5400+30:1800+30"]

1. Nf3 {[%emt 0:00:00]} e6 {[%emt 0:02:29]} 2. c4 {[%emt 0:00:03]} Nf6 {[%emt 0:03:18]} 3. g3 {[%emt 0:00:17]} d5 {[%emt 0:00:36]} 4. Bg2 {[%emt 0:00:29]} dxc4 {[%emt 0:03:17]} 5. Qa4+ {[%emt 0:00:32]} Nbd7 {[%emt 0:00:36]} 6. Qxc4 {[%emt 0:00:39]} a6 {[%emt 0:02:40]} 7. Qb3 {[%emt 0:03:04]} c5 {[%emt 0:07:43]} 8. Nc3 {[%emt 0:02:42]} Qc7 {[%emt 0:04:21]} 9. d3 {[%emt 0:04:17]} Bd6 {[%emt 0:02:19]} 10. O-O {[%emt 0:03:06]} O-O {[%emt 0:01:34]} 11. Ng5 {[%emt 0:04:22]} Rb8 {[%emt 0:11:20]} 12. Nce4 {[%emt 0:06:23]} Nxe4 {[%emt 0:01:01]} 13. Nxe4 {[%emt 0:00:17]} Be7 {[%emt 0:09:48]} 14. Bf4 {[%emt 0:10:03]} e5 {[%emt 0:00:07]} 15. Be3 {[%emt 0:09:21]} b6 {[%emt 0:01:22]} 16. f4 {[%emt 0:07:20]} Bb7 {[%emt 0:03:12]} 17. fxe5 {[%emt 0:04:17]} Nxe5 {[%emt 0:00:11]} 18. Bf4 {[%emt 0:01:29]} Bd6 {[%emt 0:04:57]} 19. Rac1 {[%emt 0:08:20]} Bxe4 {[%emt 0:08:09]} 20. Bxe4 {[%emt 0:00:09]} Nc6 {[%emt 0:01:53]} 21. Qd5 {[%emt 0:02:51]} Bxf4 {[%emt 0:29:37]} 22. Rxf4 {[%emt 0:00:05]} Rbc8 {[%emt 0:00:00]} 23. Rcf1 {[%emt 0:04:56]} Ne5 {[%emt 0:00:00]} 24. Qb7 {[%emt 0:11:17]} Qxb7 {[%emt 0:00:00]} 25. Bxb7 {[%emt 0:00:03]} Rc7 {[%emt 0:00:00]} 26. Be4 {[%emt 0:02:52]} Rd8 {[%emt 0:00:00]} 27. Rc1 {[%emt 0:01:29]} Re7 {[%emt 0:00:00]} 28. a3 {[%emt 0:00:13]} a5 {[%emt 0:00:00]} 29. Bg2 {[%emt 0:01:51]} Ng6 {[%emt 0:00:00]} 30. Re4 {[%emt 0:00:23]} f5 {[%emt 0:00:25]} 31. Rxe7 {[%emt 0:00:25]} Nxe7 {[%emt 0:00:00]} 32. b4 {[%emt 0:00:24]} axb4 {[%emt 0:00:03]} 33. axb4 {[%emt 0:00:03]} cxb4 {[%emt 0:00:16]} 34. Rc4 {[%emt 0:00:04]} b3 {[%emt 0:02:51]} 35. Rb4 {[%emt 0:00:02]} Rd6 {[%emt 0:00:04]} 36. Rxb3 {[%emt 0:00:09]} Kf7 {[%emt 0:00:07]} 37. Rb5 {[%emt 0:00:14]} Ke6 {[%emt 0:00:30]} 38. Kf2 {[%emt 0:00:22]} Ng6 {[%emt 0:02:36]} 39. Bh3 {[%emt 0:02:12]} Ne7 {[%emt 0:01:02]} 40. e4 {[%emt 0:01:02]} Rxd3 {[%emt 0:00:15]} 41. exf5+ {[%emt 0:30:41]} Kf6 {[%emt 0:30:56]} 42. Rxb6+ {[%emt 0:03:50]} Kg5 {[%emt 0:00:00]} 43. f6 {[%emt 0:00:00]} gxf6 {[%emt 0:00:00]} 44. Rb2 {[%emt 0:00:00]} Ng6 {[%emt 0:00:00]} 45. Bf1 {[%emt 0:00:00]} Ne5 {[%emt 0:00:00]} 46. Be2 {[%emt 0:00:00]} h5 {[%emt 0:00:00]} 47. Rb8 {[%emt 0:00:00]} Ng4+ {[%emt 0:00:00]} 48. Ke1 {[%emt 0:00:00]} Ra3 {[%emt 0:00:00]} 49. Rg8+ {[%emt 0:00:00]} Kf5 {[%emt 0:00:00]} 50. h3 {[%emt 0:00:00]} Ra1+ {[%emt 0:00:00]} 51. Kd2 {[%emt 0:00:00]} Ra2+ {[%emt 0:00:00]} 52. Kd3 {[%emt 0:00:00]} Ne5+ {[%emt 0:00:00]} 53. Ke3 {[%emt 0:00:00]} Ra3+ {[%emt 0:00:00]} 54. Kf2 {[%emt 0:00:15]} h4 {[%emt 0:00:00]} 55. gxh4 {[%emt 0:03:57]} Rxh3 {[%emt 0:00:00]} 56. h5 {[%emt 0:01:01]} Kf4 {[%emt 0:01:35]} 57. Kg2 {[%emt 0:01:38]} Rh4 {[%emt 0:00:10]} 58. Ra8 {[%emt 0:01:31]} f5 {[%emt 0:00:56]} 59. Ra4+ {[%emt 0:03:30]} 1/2-1/2

[Event "94th FRA-ch Accession 2019"]
[Site "Chartres"]
[Date "2019.08.19"]
[Round "3.2"]
[White "Lamard, Guillaume"]
[Black "Ollier, Pablo"]
[Result "1-0"]
[ECO "A17"]
[WhiteElo "2419"]
[BlackElo "2382"]
[Annotator "NA"]
[PlyCount "123"]
[EventDate "2019.08.17"]
[EventType "swiss"]
[EventCountry "FRA"]
[SourceTitle "playchess.com"]
[Source "ChessBase"]
[SourceQuality "1"]
[TimeControl "40/5400+30:1800+30"]

1. Nf3 {[%emt 0:00:00]} Nf6 {[%emt 0:00:00]} 2. c4 {[%emt 0:00:00]} e6 {[%emt 0:00:00]} 3. Nc3 {[%emt 0:00:00]} Bb4 {[%emt 0:00:51]} 4. Qc2 {[%emt 0:00:00]} c5 {[%emt 0:00:09]} 5. a3 {[%emt 0:00:00]} Ba5 {[%emt 0:00:10]} 6. e3 {[%emt 0:00:00]} O-O {[%emt 0:01:36]} 7. Be2 {[%emt 0:00:00]} d5 {[%emt 0:01:29]} 8. cxd5 {[%emt 0:00:34]} exd5 {[%emt 0:05:23]} 9. d4 {[%emt 0:02:29]} c4 {[%emt 0:05:36]} 10. O-O {[%emt 0:02:01]} Nc6 {[%emt 0:00:00]} 11. Ne5 {[%emt 0:17:24]} Qe8 {[%emt 0:19:02]} 12. f4 {[%emt 0:02:16]} Bxc3 {[%emt 0:03:48]} 13. bxc3 {[%emt 0:01:51]} Ne4 {[%emt 0:01:11]} 14. a4 {[%emt 0:18:01]} f6 {[%emt 0:05:38]} 15. Nf3 {[%emt 0:14:02]} Qg6 {[%emt 0:10:52]} 16. f5 {[%emt 0:01:11]} Qxf5 {[%emt 0:10:42]} 17. Nd2 {[%emt 0:00:45]} Qe6 {[%emt 0:00:47]} 18. Nxe4 {[%emt 0:00:18]} dxe4 {[%emt 0:00:07]} 19. a5 {[%emt 0:05:46]} Qd5 {[%emt 0:05:34]} 20. Ra4 {[%emt 0:04:03]} Nxa5 {[%emt 0:00:13]} 21. Qa2 {[%emt 0:29:49]} b6 {[%emt 0:00:09]} 22. Rxa5 {[%emt 0:00:00]} Qxa5 {[%emt 0:00:07]} 23. Bxc4+ {[%emt 0:00:00]} Kh8 {[%emt 0:00:22]} 24. Qxa5 {[%emt 0:00:00]} bxa5 {[%emt 0:00:05]} 25. Ba3 {[%emt 0:00:00]} Re8 {[%emt 0:03:09]} 26. Bb5 {[%emt 0:00:00]} Rd8 {[%emt 0:03:17]} 27. Bc6 {[%emt 0:00:00]} Ba6 {[%emt 0:02:23]} 28. Rf5 {[%emt 0:00:00]} Rac8 {[%emt 0:04:27]} 29. Rc5 {[%emt 0:00:00]} Bd3 {[%emt 0:00:45]} 30. d5 {[%emt 0:00:00]} a4 {[%emt 0:01:35]} 31. Ra5 {[%emt 0:00:00]} Rb8 {[%emt 0:07:05]} 32. Rxa4 {[%emt 0:00:00]} Bb5 {[%emt 0:02:59]} 33. Bxb5 {[%emt 0:00:00]} Rxb5 {[%emt 0:00:02]} 34. c4 {[%emt 0:00:00]} Rb3 {[%emt 0:02:10]} 35. Kf2 {[%emt 0:01:24]} Rc3 {[%emt 0:02:32]} 36. d6 {[%emt 0:01:03]} Kg8 {[%emt 0:01:46]} 37. c5 {[%emt 0:00:16]} Kf7 {[%emt 0:00:28]} 38. Rxa7+ {[%emt 0:01:15]} Ke6 {[%emt 0:00:28]} 39. Re7+ {[%emt 0:01:24]} Kd5 {[%emt 0:01:11]} 40. Bb4 {[%emt 0:00:04]} Rc2+ {[%emt 0:00:10]} 41. Kg3 {[%emt 0:30:19]} Kc6 {[%emt 0:03:57]} 42. Rxe4 {[%emt 0:00:00]} Rd7 {[%emt 0:01:31]} 43. Kf3 {[%emt 0:00:00]} Ra7 {[%emt 0:03:01]} 44. Rd4 {[%emt 0:00:00]} Kd7 {[%emt 0:00:44]} 45. Re4 {[%emt 0:00:00]} Kc6 {[%emt 0:00:51]} 46. Rd4 {[%emt 0:00:00]} Rb7 {[%emt 0:02:48]} 47. h4 {[%emt 0:00:00]} Rb2 {[%emt 0:01:12]} 48. Ba5 {[%emt 0:00:00]} R2b5 {[%emt 0:06:29]} 49. Bb6 {[%emt 0:00:00]} Kd7 {[%emt 0:15:39]} 50. Ra4 {[%emt 0:00:00]} h5 {[%emt 0:00:00]} 51. Ba7 {[%emt 0:00:00]} Rb4 {[%emt 0:00:00]} 52. Ra6 {[%emt 0:00:00]} Rc4 {[%emt 0:00:00]} 53. Bb6 {[%emt 0:00:00]} Rxh4 {[%emt 0:00:00]} 54. e4 {[%emt 0:01:51]} Rh1 {[%emt 0:00:00]} 55. Ra8 {[%emt 0:00:04]} Rf1+ {[%emt 0:00:00]} 56. Kg3 {[%emt 0:00:54]} Rb1 {[%emt 0:00:00]} 57. Rd8+ {[%emt 0:00:30]} Kc6 {[%emt 0:00:00]} 58. Rc8+ {[%emt 0:00:20]} Kb5 {[%emt 0:01:21]} 59. c6 {[%emt 0:03:41]} Rxb6 {[%emt 0:02:35]} 60. c7 {[%emt 0:00:09]} Rb3+ {[%emt 0:00:48]} 61. Kh2 {[%emt 0:00:20]} Rc3 {[%emt 0:00:41]} 62. d7 {[%emt 0:00:43]} 1-0

[Event "94th FRA-ch Accession 2019"]
[Site "Chartres"]
[Date "2019.08.19"]
[Round "3.3"]
[White "Gatineau, Yovann"]
[Black "Maurizzi, Marc Andria"]
[Result "1-0"]
[ECO "A09"]
[WhiteElo "2363"]
[BlackElo "2419"]
[Annotator "NA"]
[PlyCount "57"]
[EventDate "2019.08.17"]
[EventType "swiss"]
[EventCountry "FRA"]
[SourceTitle "playchess.com"]
[Source "ChessBase"]
[SourceQuality "1"]
[TimeControl "40/5400+30:1800+30"]

1. Nf3 {[%emt 0:02:28]} d5 {[%emt 0:00:00]} 2. c4 {[%emt 0:00:07]} d4 {[%emt 0:00:00]} 3. b4 {[%emt 0:00:07]} Bg4 {[%emt 0:00:08]} 4. Qb3 {[%emt 0:00:11]} Nf6 {[%emt 0:00:07]} 5. Bb2 {[%emt 0:01:05]} Bxf3 {[%emt 0:00:12]} 6. Qxf3 {[%emt 0:00:07]} c6 {[%emt 0:00:06]} 7. e3 {[%emt 0:06:19]} e5 {[%emt 0:00:18]} 8. exd4 {[%emt 0:00:06]} exd4 {[%emt 0:00:40]} 9. c5 {[%emt 0:00:19]} a5 {[%emt 0:04:14]} 10. a3 {[%emt 0:06:00]} axb4 {[%emt 0:06:59]} 11. axb4 {[%emt 0:02:24]} Rxa1 {[%emt 0:00:29]} 12. Bxa1 {[%emt 0:00:05]} Qd5 {[%emt 0:00:21]} 13. Qf4 {[%emt 0:02:00]} Qe6+ {[%emt 0:08:05]} 14. Kd1 {[%emt 0:05:46]} Qb3+ {[%emt 0:18:05]} 15. Kc1 {[%emt 0:00:09]} Nbd7 {[%emt 0:02:30]} 16. Qxd4 {[%emt 0:01:39]} b6 {[%emt 0:00:42]} 17. Bc4 {[%emt 1:09:38]} Qa4 {[%emt 0:01:45]} 18. Re1+ {[%emt 0:00:00]} Kd8 {[%emt 0:00:06]} 19. cxb6 {[%emt 0:00:00]} Qxb4 {[%emt 0:07:10]} 20. Bxf7 {[%emt 0:00:00]} Qxb6 {[%emt 0:00:00]} 21. Qxb6+ {[%emt 0:00:00]} Nxb6 {[%emt 0:00:00]} 22. Re6 {[%emt 0:00:00]} Kd7 {[%emt 0:02:50]} 23. Rxf6 {[%emt 0:00:00]} gxf6 {[%emt 0:00:13]} 24. Bxf6 {[%emt 0:00:00]} Ba3+ {[%emt 0:00:16]} 25. Nxa3 {[%emt 0:00:00]} Rf8 {[%emt 0:00:09]} 26. Bd4 {[%emt 0:00:00]} c5 {[%emt 0:00:16]} 27. Bxc5 {[%emt 0:00:00]} Rc8 {[%emt 0:00:03]} 28. d4 {[%emt 0:00:00]} Na4 {[%emt 0:00:02]} 29. Nc4 {[%emt 0:00:00]} 1-0

[Event "94th FRA-ch Accession 2019"]
[Site "Chartres"]
[Date "2019.08.19"]
[Round "3.4"]
[White "Stephan, Victor"]
[Black "Le Corre, Benjamin"]
[Result "1-0"]
[ECO "A57"]
[WhiteElo "2413"]
[BlackElo "2281"]
[Annotator "NA"]
[PlyCount "115"]
[EventDate "2019.08.17"]
[EventType "swiss"]
[EventCountry "FRA"]
[SourceTitle "playchess.com"]
[Source "ChessBase"]
[SourceQuality "1"]
[TimeControl "40/5400+30:1800+30"]

1. d4 {[%emt 0:00:00]} Nf6 {[%emt 0:01:45]} 2. c4 {[%emt 0:00:00]} c5 {[%emt 0:00:06]} 3. d5 {[%emt 0:00:24]} b5 {[%emt 0:00:04]} 4. a4 {[%emt 0:01:07]} b4 {[%emt 0:00:09]} 5. Qc2 {[%emt 0:00:16]} g6 {[%emt 0:02:31]} 6. e4 {[%emt 0:00:15]} d6 {[%emt 0:00:05]} 7. f4 {[%emt 0:00:15]} Bg7 {[%emt 0:01:41]} 8. Bd3 {[%emt 0:01:21]} O-O {[%emt 0:07:57]} 9. Nf3 {[%emt 0:01:05]} Nbd7 {[%emt 0:06:46]} 10. O-O {[%emt 0:01:29]} Rb8 {[%emt 0:03:36]} 11. h3 {[%emt 0:01:07]} e6 {[%emt 0:03:03]} 12. f5 {[%emt 0:04:31]} exf5 {[%emt 0:00:22]} 13. exf5 {[%emt 0:00:23]} Re8 {[%emt 0:00:26]} 14. Bg5 {[%emt 0:02:50]} Ne5 {[%emt 0:14:14]} 15. Nxe5 {[%emt 0:02:55]} Rxe5 {[%emt 0:00:46]} 16. Nd2 {[%emt 0:04:13]} b3 {[%emt 0:05:39]} 17. Nxb3 {[%emt 0:08:20]} Bxf5 {[%emt 0:07:43]} 18. Bxf5 {[%emt 0:01:40]} Rxf5 {[%emt 0:00:55]} 19. Rxf5 {[%emt 0:01:10]} gxf5 {[%emt 0:00:16]} 20. Rf1 {[%emt 0:01:19]} h6 {[%emt 0:12:54]} 21. Bh4 {[%emt 0:04:25]} Qd7 {[%emt 0:02:51]} 22. Nd2 {[%emt 0:03:30]} Re8 {[%emt 0:07:26]} 23. Rxf5 {[%emt 0:04:31]} Nh7 {[%emt 0:05:26]} 24. Rf1 {[%emt 0:03:24]} Re2 {[%emt 0:01:28]} 25. Qd3 {[%emt 0:01:47]} Re3 {[%emt 0:02:38]} 26. Qc2 {[%emt 0:01:55]} Re2 {[%emt 0:00:17]} 27. b3 {[%emt 0:02:36]} Qe8 {[%emt 0:00:15]} 28. Qd3 {[%emt 0:01:02]} Nf8 {[%emt 0:02:46]} 29. Nf3 {[%emt 0:04:23]} Ng6 {[%emt 0:00:20]} 30. Bg3 {[%emt 0:02:38]} Re3 {[%emt 0:04:50]} 31. Qf5 {[%emt 0:04:00]} Ne5 {[%emt 0:01:42]} 32. Nxe5 {[%emt 0:02:54]} Bxe5 {[%emt 0:00:28]} 33. Qg4+ {[%emt 0:01:11]} Kh8 {[%emt 0:00:34]} 34. Bf4 {[%emt 0:04:32]} Rxb3 {[%emt 0:03:48]} 35. Bxh6 {[%emt 0:00:41]} Rg3 {[%emt 0:00:36]} 36. Qh4 {[%emt 0:02:38]} Kg8 {[%emt 0:00:08]} 37. Bf4 {[%emt 0:01:14]} Bxf4 {[%emt 0:00:52]} 38. Rxf4 {[%emt 0:01:01]} Qe3+ {[%emt 0:00:47]} 39. Kh2 {[%emt 0:00:36]} Rg6 {[%emt 0:00:45]} 40. Re4 {[%emt 0:01:14]} Qh6 {[%emt 0:00:04]} 41. Qxh6 {[%emt 0:32:59]} Rxh6 {[%emt 0:01:47]} 42. Re7 {[%emt 0:00:00]} Rf6 {[%emt 0:00:11]} 43. Kg3 {[%emt 0:00:00]} Rf1 {[%emt 0:00:15]} 44. Rxa7 {[%emt 0:00:00]} Rc1 {[%emt 0:00:09]} 45. Rd7 {[%emt 0:00:00]} Rxc4 {[%emt 0:00:08]} 46. a5 {[%emt 0:00:00]} Ra4 {[%emt 0:01:15]} 47. Rxd6 {[%emt 0:00:00]} Rxa5 {[%emt 0:01:16]} 48. Kf4 {[%emt 0:00:00]} Kf8 {[%emt 0:05:00]} 49. Rc6 {[%emt 0:00:00]} Ke7 {[%emt 0:03:16]} 50. Ke5 {[%emt 0:00:00]} Kd7 {[%emt 0:00:18]} 51. Rf6 {[%emt 0:00:00]} Ke8 {[%emt 0:00:47]} 52. Rb6 {[%emt 0:00:00]} c4 {[%emt 0:01:49]} 53. Kd6 {[%emt 0:01:38]} f5 {[%emt 0:00:03]} 54. Ke6 {[%emt 0:01:21]} Kd8 {[%emt 0:00:06]} 55. Rd6+ {[%emt 0:00:16]} Ke8 {[%emt 0:03:14]} 56. Rc6 {[%emt 0:00:16]} Kd8 {[%emt 0:00:05]} 57. Rxc4 {[%emt 0:00:51]} Ra2 {[%emt 0:00:04]} 58. g4 {[%emt 0:01:03]} 1-0